fUSD/lending_fUSD_20240103
["ID","MTS","AMOUNT","RATE_DAILY","PERIOD"]
[310014763,1704287438895,-2299.13184057,0.000229,2]
[310014765,1704287438904,-203.51667545,0.000229,2]
[310014767,1704287438914,-1332.68294438,0.000229,2]
[310014769,1704287438923,-52237.2,0.000229,2]
[310014771,1704287438933,-363.68947991,0.000229,2]
[310014773,1704287438942,-1486.66939972,0.000229,2]
[310014775,1704287438952,-2000.0,0.000229,2]
[310014777,1704287438963,-173.22686718,0.000229,2]
[310014779,1704287438973,-680.23469891,0.000229,6]
[310014782,1704287438984,-197.08104222,0.00022989,2]
[310014783,1704287438995,-197.08104222,0.0002299,2]
[310014786,1704287439005,-197.08104222,0.0002299,2]
[310014788,1704287439014,-166.62,0.00022992,2]
[310014790,1704287439024,-223.24124902,0.00022998,2]
[310014792,1704287439033,-155.35089541,0.00022998,2]
[310014794,1704287439042,-155.33313839,0.00022998,2]
[310014796,1704287439052,-266.29198581,0.00022998,2]
[310014798,1704287439061,-155.39127496,0.00022998,2]
[310014800,1704287439071,-155.1313233,0.00022998,2]
[310014802,1704287439081,-187.82458213,0.00022998,2]
[310014804,1704287439092,-242.7076729,0.00022998,2]
[310014806,1704287439101,-197.33639381,0.00022998,2]
[310014808,1704287439110,-155.0,0.00022998,2]
[310014809,1704287439120,-155.28715954,0.00022998,2]
[310014812,1704287439130,-155.56934554,0.00022998,2]
[310014814,1704287439140,-158.44372652,0.00022998,2]
[310014816,1704287439149,-155.0,0.00022998,2]
[310014818,1704287439159,-155.0,0.00022998,2]
[310014820,1704287439169,-155.64273621,0.00022998,2]
[310014822,1704287439178,-280.17897298,0.00022998,2]
[310014824,1704287439187,-257.27564803,0.00022998,2]
[310014827,1704287439196,-1824.08541595,0.00022998,2]
[310014830,1704287439206,-369.06498829,0.00022998,2]
[310014832,1704287439216,-1765.37906595,0.00022998,2]
[310014834,1704287439225,-2582.84318568,0.00022998,2]
[310014836,1704287439234,-299.93588338,0.00022998,2]
[310014838,1704287439244,-499.99,0.00022999,2]
[310014840,1704287439253,-3605.52251831,0.00022999,2]
[310014842,1704287439262,-500.0,0.00022999,4]
[310014844,1704287439273,-500.0,0.00022999,4]
[310014846,1704287439283,-367.45777452,0.00022999,4]
[310014848,1704287439292,-500.0,0.00022999,4]
[310014850,1704287439301,-210.33751816,0.00022999,4]
[310014852,1704287439311,-500.0,0.00022999,4]
[310014855,1704287439320,-500.92571629,0.00022999,4]
[310014856,1704287439329,-411.37469365,0.00022999,2]
[310014858,1704287439339,-358.61831409,0.00022999,4]
[310014860,1704287439348,-418.38803311,0.00022999,4]
[310014862,1704287439358,-239.07887606,0.00022999,4]
[310014864,1704287439368,-259506.96984084,0.00022999,2]
[310014866,1704287439378,-576061.4562209,0.00023,2]
[310014869,1704287439394,-377.8302,0.00023,2]
[310014871,1704287439406,-1150.497,0.00023,2]
[310014874,1704287439423,-558.16,0.00023,2]
[310014877,1704287439444,-108315.72986846,0.00023,2]
[310014879,1704287439456,-69852.96451303,0.00023,2]
[310014882,1704287439469,-47042.18279256,0.00023,2]
[310014887,1704287439511,-1436.2196002,0.00023,2]
[310014889,1704287439550,-48150.73162982,0.00023,2]
[310014890,1704287439573,-475.24367176,0.00023,2]
[310014891,1704287439589,-336.260586,0.00023,2]
[310014892,1704287439602,-661.88692971,0.00023,2]
[310014893,1704287439620,-2062.21623981,0.00023,2]
[310014895,1704287439632,-217737.18224416,0.00023,2]
[310014896,1704287439644,-301923.84085912,0.00023,2]
[310014897,1704287439656,-738.21863589,0.00023,2]
[310014899,1704287439669,-1004.20489877,0.00023,2]
[310014900,1704287439694,-1197.93357264,0.00023,2]
[310014911,1704287439981,-1360.35773514,0.00023,2]
[310014912,1704287440026,-1183.9297268,0.00023,2]
[310014915,1704287440235,-308.16806821,0.00023,2]
[310014916,1704287440247,-18948.54310819,0.00023,2]
[310014917,1704287440259,-618.99324043,0.00023,2]
[310014918,1704287440271,-7485.99969193,0.00023,2]
[310014919,1704287440287,-11768.32918391,0.00023,2]
[310014920,1704287440300,-855.8,0.00023,2]
[310014922,1704287440312,-7683.57294495,0.00023,2]
[310014923,1704287440324,-1484.39710929,0.00023,2]
[310014924,1704287440340,-5666.63720977,0.00023,2]
[310014925,1704287440355,-85025.1235518,0.00023,2]
[310014926,1704287440367,-527.35305182,0.00023,2]
[310014927,1704287440379,-1412.037,0.00023,2]
[310014928,1704287440498,-402.171,0.00023,2]
[310014929,1704287440510,-2360.98849158,0.00023,2]
[310014930,1704287440613,-6465.97233009,0.00023,2]
[310014931,1704287440818,-128442.09682232,0.00023,2]
[310014932,1704287440831,-85631.17436694,0.00023,2]
[310014933,1704287440904,-815.03422,0.00023,2]
[310014934,1704287440916,-3167.6461701,0.00023,2]
[310014991,1704287442455,-3342.96308922,0.00023,2]
[310014994,1704287442470,-6534.66048429,0.00023,2]
[310015002,1704287442538,-1442.55441589,0.00023,2]
[310015004,1704287442550,-6506.9681168,0.00023,2]
[310015006,1704287442563,-3006.03370015,0.00023,2]
[310015012,1704287442809,-504.57445119,0.00023,2]
[310015013,1704287442822,-8454.86795562,0.00023,2]
[310015014,1704287442834,-64117.17161139,0.00023,2]
[310015015,1704287442852,-288.096,0.00023,2]
[310015016,1704287442866,-2108.76208,0.00023,2]
[310015017,1704287442877,-402.81190095,0.00023,2]
[310015018,1704287442896,-747.93936089,0.00023,2]
[310015019,1704287442907,-2097.56235202,0.00023,2]
[310015020,1704287442919,-422.71099998,0.00023,2]
[310015021,1704287442937,-297486.17975711,0.00023,2]
[310015022,1704287442949,-2139.65,0.00023,2]
[310015023,1704287442973,-446.14741197,0.00023,2]
[310015024,1704287442985,-664.70756707,0.00023,2]
[310015025,1704287443005,-1311.85836617,0.00023,2]
[310015027,1704287443016,-406.58996431,0.00023,2]
[310015101,1704287445551,-278.31410173,0.00022999,2]
[310015103,1704287445561,-1465.91607592,0.00022999,2]
[310015105,1704287445571,-388630.20410795,0.00023,2]
[310015111,1704287445621,-273.856,0.00023,2]
[310015120,1704287445695,-580.68043148,0.000229,2]
[310015122,1704287445706,-727.5415773,0.000229,2]
[310015124,1704287445722,-1026.56799122,0.000229,2]
[310015126,1704287445731,-28836.35129778,0.00023,2]
[310015159,1704287446250,-388.35687835,0.00023,2]
[310015160,1704287446262,-39432.56083878,0.00023,2]
[310015161,1704287446297,-1641.95616803,0.00023,2]
[310015164,1704287457494,933.316855,0.00022308,2]
[310015165,1704287470672,27142.98746034,0.000225,2]
[310015166,1704287487445,2407.88659368,0.00022306,2]
[310015167,1704287494043,206.0,0.00022443,2]
[310015169,1704287510636,150.0,0.00022272,2]
[310015218,1704287543168,1011.56,0.00022154,2]
[310015219,1704287571729,2402.96,0.00021756,2]
[310015220,1704287587179,500.0,0.00022107,2]
[310015221,1704287597340,165.23,0.00022307,2]
[310015222,1704287612747,165.76,0.00022191,2]
[310015223,1704287619101,155.19,0.00022382,2]
[310015224,1704287624126,250.0,0.00022126,2]
[310015225,1704287638088,2000.0,0.00022126,2]
[310015226,1704287653095,-315.0,0.00022751,2]
[310015227,1704287732982,168.03291666,0.00022412,2]
[310015228,1704287738000,168.03291662,0.00022493,2]
[310015229,1704287762613,200.0,0.00021881,2]
[310015230,1704287769979,23900.0,0.00021908,2]
[310015231,1704287772306,150.32,0.00021883,2]
[310015232,1704287776446,603.22,0.00021883,2]
[310015233,1704287826739,5000.0,0.00022499,2]
[310015234,1704287828686,2612.12944822,0.00022499,2]
[310015235,1704287831762,155.0,0.00022499,2]
[310015236,1704287833126,10525.07510932,0.00022499,2]
[310015237,1704287834030,249.49643199,0.00022499,2]
[310015238,1704287836008,1653.63121375,0.00022499,2]
[310015239,1704287845697,155.0,0.00022499,2]
[310015240,1704287852397,4611.87269733,0.00022499,2]
[310015241,1704287852994,301.34081716,0.00022499,2]
[310015242,1704287861683,576.766264,0.00022499,2]
[310015243,1704287863885,2938.34831561,0.00022499,2]
[310015244,1704287871152,3035.94965715,0.00022499,2]
[310015245,1704287878561,531.23153517,0.00022499,2]
[310015246,1704287881622,300.0,0.00022499,2]
[310015247,1704287882323,150.0,0.00022499,2]
[310015248,1704287882384,150.0,0.00022499,2]
[310015249,1704287886252,4473.72062021,0.00022499,2]
[310015250,1704287893467,25136.5154531,0.00022499,2]
[310015251,1704287913413,1653.63121375,0.00022499,2]
[310015252,1704287916826,775.16,0.00020058,2]
[310015253,1704287917387,775.16,0.00022322,2]
[310015254,1704287959578,2177.7766,0.00022402,2]
[310015255,1704287960480,200.0,0.00021955,2]
[310015256,1704287966302,6418.11723431,0.00022499,2]
[310015257,1704287976500,251.24,0.00021976,2]
[310015258,1704287984896,1653.63121375,0.00022499,2]
[310015259,1704287988641,944.12,0.00022013,2]
[310015260,1704287992756,293.99203064,0.00029,30]
[310015261,1704287993835,500.0,0.00021998,2]
[310015262,1704288002919,697.06047486,0.00022499,2]
[310015263,1704288004106,201.0,0.00021516,2]
[310015264,1704288005006,150.0,0.00021955,2]
[310015265,1704288005045,150.0,0.00021955,2]
[310015266,1704288005100,150.0,0.00021955,2]
[310015267,1704288005164,150.0,0.00021955,2]
[310015268,1704288005258,254.96629848,0.00021955,2]
[310015269,1704288015758,1058.5073427,0.00022499,2]
[310015270,1704288034146,2113.6,0.00021948,2]
[310015271,1704288048293,150.0,0.00021948,2]
[310015272,1704288062204,150.0,0.00022499,2]
[310015273,1704288070416,1653.63121375,0.00022499,2]
[310015274,1704288074835,250.0,0.00021976,2]
[310015275,1704288076064,281.18,0.00021958,2]
[310015276,1704288085746,169.14,0.00021958,2]
[310015277,1704288087022,725.85906321,0.00021,2]
[310015278,1704288091051,3116.83792349,0.00021846,2]
[310015279,1704288108842,150.0,0.00022277,2]
[310015280,1704288109057,1285.38689427,0.00022077,2]
[310015281,1704288109679,1285.38689427,0.00022314,2]
[310015282,1704288113046,1070.80382123,0.00021846,2]
[310015283,1704288143031,1653.63121375,0.00022499,2]
[310015284,1704288202969,287.711424,0.00022499,2]
[310015285,1704288222431,1653.63121375,0.00022499,2]
[310015286,1704288223128,207.43,0.0002206,2]
[310015287,1704288229771,150.0,0.00022382,2]
[310015288,1704288230161,1285.38689427,0.00022259,2]
[310015289,1704288230467,1285.38689427,0.00022486,2]
[310015290,1704288245643,150.0,0.00022499,2]
[310015291,1704288283510,191.807616,0.00022499,2]
[310015292,1704288299931,1653.63121375,0.00022499,2]
[310015293,1704288345693,23900.0,0.00021998,2]
[310015294,1704288347995,697.64,0.0002008,2]
[310015295,1704288348380,697.64,0.00022344,2]
[310015296,1704288349051,2000.0,0.00021929,2]
[310015328,1704288364026,159.83968,0.00022499,2]
[310015329,1704288364295,201.0,0.00021648,2]
[310015330,1704288379960,1653.63121375,0.00022499,2]
[310015331,1704288397304,327.29158207,0.00029,30]
[310015332,1704288398870,808.93,0.00021896,2]
[310015333,1704288400439,-2000.0,0.000225,2]
[310015334,1704288400906,-2000.0,0.000225,2]
[310015335,1704288401389,-2000.0,0.000225,2]
[310015336,1704288401778,-2000.0,0.000225,2]
[310015337,1704288402169,-2000.0,0.000225,2]
[310015338,1704288402785,-2000.0,0.000225,2]
[310015339,1704288403024,-2000.0,0.000225,2]
[310015340,1704288403546,-2000.0,0.000225,2]
[310015341,1704288404251,-713.83662006,0.000225,2]
[310015342,1704288411397,840.0,0.00021998,2]
[310015343,1704288420162,251.24,0.00021926,2]
[310015519,1704288436510,155.0,0.00022499,2]
[310015591,1704288443080,39.92337994,0.00021931,2]
[310015593,1704288443103,841.24662006,0.00021931,2]
[310015606,1704288443377,362.98644778,0.00022499,2]
[310015626,1704288460941,300.0,0.000225,8]
[310015627,1704288463041,700.0,0.000226,8]
[310015628,1704288465170,1100.0,0.000227,8]
[310015629,1704288465520,500.0,0.00021913,2]
[310015630,1704288467287,1500.0,0.000228,8]
[310015631,1704288467743,295.76693216,0.00022499,2]
[310015632,1704288467768,4.59185567,0.00022499,2]
[310015633,1704288469612,1800.0,0.000229,8]
[310015634,1704288472129,1306.28523833,0.00022473,2]
[310015635,1704288517684,250.0,0.00021874,2]
[310015636,1704288535807,150.0,0.00021848,2]
[310015648,1704288552842,170.37,0.00021865,2]
[310015649,1704288564202,118.752906,0.00022074,2]
[310015650,1704288564227,45.667094,0.00022074,2]
[310015651,1704288602800,150.0,0.00022074,2]
[310015652,1704288603007,150.0,0.00022074,2]
[310015653,1704288603199,150.0,0.00022074,2]
[310015654,1704288603422,150.0,0.00022074,2]
[310015655,1704288603714,150.0,0.00022074,2]
[310015656,1704288607876,150.0,0.00022074,2]
[310015657,1704288608197,150.0,0.00022074,2]
[310015658,1704288608372,150.0,0.00022074,2]
[310015659,1704288608569,150.0,0.00022074,2]
[310015660,1704288608773,150.0,0.00022074,2]
[310015661,1704288608954,150.0,0.00022074,2]
[310015662,1704288609326,286.43074405,0.00022074,2]
[310015663,1704288628281,17.90216195,0.00022408,2]
[310015664,1704288628306,135.19627709,0.00022408,2]
[310015688,1704288631593,-370.01108445,0.00022501,2]
[310015691,1704288631603,-3035.94965715,0.00022501,2]
[310015693,1704288631613,-522.20683445,0.00022502,2]
[310015695,1704288631623,-150.0,0.00022502,2]
[310015698,1704288631633,-150.0,0.00022506,2]
[310015701,1704288631643,-16713.83662006,0.00022507,2]
[310015704,1704288631654,-1676.07450224,0.00022508,2]
[310015706,1704288631666,-150.99,0.00022516,2]
[310015709,1704288631680,-2533.14,0.00022516,2]
[310015711,1704288631691,-1654.95,0.00022616,2]
[310015713,1704288631701,-150.0,0.00022634,2]
[310015715,1704288631711,-600.94595504,0.000227,2]
[310015717,1704288631721,-636.74,0.000227,2]
[310015719,1704288631731,-499.99,0.000227,2]
[310015722,1704288631741,-402.95,0.000227,2]
[310015725,1704288631752,-1187.96673361,0.00022756,2]
[310015728,1704288631763,-16388.34582866,0.00022766,2]
[310015731,1704288631774,-164.42,0.00022767,2]
[310015734,1704288631784,-492.66491416,0.00022768,2]
[310015737,1704288631794,-247.43612675,0.00022768,2]
[310015740,1704288631803,-2500.0,0.00022798,2]
[310015743,1704288631813,-201.0,0.0002281,3]
[310015746,1704288631823,-558.43427985,0.00022883,2]
[310015749,1704288631833,-203.37489632,0.00022896,2]
[310015752,1704288631844,-343.63321494,0.00022896,2]
[310015755,1704288631854,-164.94450279,0.00022896,2]
[310015758,1704288631865,-155.0,0.00022896,2]
[310015761,1704288631875,-329.09226609,0.00022897,2]
[310015764,1704288631886,-1424.35902177,0.00022897,2]
[310015767,1704288631896,-355088.5388,0.00022898,2]
[310015770,1704288631905,-250.3969,0.00022898,2]
[310015773,1704288631915,-172.78776713,0.000229,2]
[310015776,1704288631927,-167.23392738,0.000229,2]
[310015778,1704288631937,-3296.82038962,0.000229,2]
[310015780,1704288631947,-296.69534764,0.000229,2]
[310015781,1704288631957,-179.37029881,0.000229,2]
[310015782,1704288631967,-266.26878774,0.000229,2]
[310015783,1704288631977,-203.51667544,0.000229,2]
[310015784,1704288631988,-888.45529626,0.000229,2]
[310015785,1704288631998,-588.13763171,0.000229,2]
[310015786,1704288632008,-544.18775912,0.000229,6]
[310015787,1704288632019,-203.04730497,0.000229,2]
[310015788,1704288632029,-881.17,0.00022909,2]
[310015789,1704288632040,-419.95,0.00022959,2]
[310015790,1704288632049,-808.93,0.00022991,2]
[310015791,1704288632060,-158.11076679,0.00022996,2]
[310015792,1704288632071,-269.83626346,0.00022996,2]
[310015793,1704288632081,-242.25597088,0.00022996,2]
[310015794,1704288632090,-332.35071247,0.00022996,2]
[310015795,1704288632101,-248.12804319,0.00022996,2]
[310015796,1704288632111,-155.0,0.00022996,2]
[310015797,1704288632120,-157.27237618,0.00022996,2]
[310015798,1704288632131,-541.22410251,0.00022996,2]
[310015799,1704288632140,-264.73235728,0.00022996,2]
[310015800,1704288632150,-210.92031935,0.00022996,2]
[310015801,1704288632160,-155.20313738,0.00022996,2]
[310015802,1704288632170,-678.67182917,0.00022996,2]
[310015803,1704288632183,-155.0,0.00022996,2]
[310015804,1704288632193,-3007.17612565,0.00022996,2]
[310015805,1704288632202,-404.64977064,0.00022996,2]
[310015806,1704288632211,-641.44062132,0.00022996,2]
[310015807,1704288632221,-2669.66702326,0.00022996,2]
[310015808,1704288632231,-337.40500653,0.00022996,2]
[310015809,1704288632242,-4467.43757306,0.00022996,2]
[310015810,1704288632253,-2655.88392487,0.00022996,2]
[310015811,1704288632263,-738.07058452,0.00022996,2]
[310015812,1704288632273,-705.09947173,0.00022996,2]
[310015813,1704288632284,-603.05169022,0.00022997,2]
[310015814,1704288632293,-459.45696518,0.00022998,2]
[310015815,1704288632304,-513.70005074,0.00022998,2]
[310015816,1704288632314,-403.22829154,0.00022998,2]
[310015817,1704288632323,-155.0,0.00022998,2]
[310015818,1704288632333,-234.78997094,0.00022998,2]
[310015819,1704288632343,-241.61161094,0.00022998,2]
[310015820,1704288632353,-2309.40085623,0.00022998,2]
[310015821,1704288632364,-527.27825206,0.00022998,2]
[310015822,1704288632374,-155.0,0.00022998,2]
[310015823,1704288632387,-2891.24890645,0.00022998,2]
[310015824,1704288632403,-158.21861741,0.00022998,2]
[310015825,1704288632419,-1762.02403637,0.00022998,2]
[310015826,1704288632434,-336.35995625,0.00022998,2]
[310015827,1704288632444,-1847.42621652,0.00022998,2]
[310015828,1704288632454,-229.94338678,0.00022998,2]
[310015829,1704288632464,-183.64713401,0.00022998,2]
[310015830,1704288632475,-540.46997169,0.00022998,2]
[310015831,1704288632486,-309.02030832,0.00022998,2]
[310015832,1704288632496,-866.54382482,0.00022998,2]
[310015833,1704288632505,-183.05433578,0.00022998,2]
[310015834,1704288632515,-217.17335148,0.00022998,2]
[310015835,1704288632524,-155.0,0.00022998,2]
[310015836,1704288632534,-383.24855968,0.00022998,2]
[310015837,1704288632544,-155.0,0.00022998,2]
[310015838,1704288632553,-1226.3149771,0.00022998,2]
[310015839,1704288632563,-1397.86994709,0.00022998,2]
[310015840,1704288632572,-10655.87494515,0.00022998,2]
[310015841,1704288632582,-241.03431218,0.00022998,2]
[310015842,1704288632591,-249.28636005,0.00022998,2]
[310015843,1704288632600,-1099.899,0.00022998,2]
[310015844,1704288632609,-490.12638582,0.00022999,2]
[310015845,1704288632619,-937.43506641,0.00022999,2]
[310015846,1704288632629,-317.68758824,0.00022999,2]
[310015847,1704288632829,-155.0,0.00022999,2]
[310015848,1704288632839,-2705.29223702,0.00022999,2]
[310015849,1704288632848,-200.0,0.00022999,4]
[310015850,1704288632858,-1000.0,0.00022999,3]
[310015852,1704288632867,-300.0,0.00022999,2]
[310015854,1704288632877,-300.0,0.00022999,2]
[310015856,1704288632886,-190.50606502,0.00022999,2]
[310015858,1704288632896,-243963.54522963,0.00023,2]
[310015860,1704288632914,-854.44,0.00023,2]
[310015863,1704288632928,-291.33480869,0.00023,2]
[310015872,1704288633003,-13135.10606132,0.00023,2]
[310015874,1704288633015,-5888.11788826,0.00023,2]
[310015877,1704288633036,-2291.1,0.00023,2]
[310015879,1704288633047,-186889.5357265,0.00023,2]
[310015884,1704288633085,-60063.13665223,0.00023,2]
[310015927,1704288635010,205.0,0.00021648,2]
[310015953,1704288637684,-384.05879726,0.00022798,2]
[310015956,1704288637694,-20.72620378,0.00023,2]
[310015957,1704288637763,-860009.34959908,0.00023,2]
[310015958,1704288637776,-301923.84085912,0.00023,2]
[310015961,1704288638310,-3689.40594558,0.00023,2]
[310015963,1704288638326,-3873.70715,0.00023,2]
[310015965,1704288638337,-10630.44,0.00023,2]
[310015968,1704288638349,-597.597,0.00023,2]
[310015972,1704288638381,-480.58140417,0.00023,2]
[310015974,1704288638392,-1115.1,0.00023,2]
[310015976,1704288638404,-4260.3,0.00023,2]
[310016151,1704288640282,-389.56,0.00023,2]
[310016156,1704288640327,346.88125772,0.00022897,10]
[310016159,1704288640339,-522.21707508,0.00023,2]
[310016161,1704288640352,-1961.46483776,0.00023,2]
[310016163,1704288640365,-2942.13303424,0.00023,2]
[310016168,1704288640404,-2015.5907962,0.00023,2]
[310016170,1704288640417,-16640.91000001,0.00023,2]
[310016172,1704288640430,-274.86650724,0.00023,2]
[310016177,1704288640468,-277.95679074,0.000229,2]
[310016186,1704288640551,-10572.7526,0.000229,2]
[310016188,1704288640562,-3067.5762999,0.000229,2]
[310016197,1704288640641,-21252.6444,0.000229,2]
[310016200,1704288640653,-45.50990936,0.000229,2]
[310016202,1704288640662,-384.05879725,0.000229,2]
[310016204,1704288640672,-160.76605798,0.00022999,2]
[310016206,1704288640681,-1631.86523541,0.00023,2]
[310016407,1704288642645,-6142.2058,0.00022798,2]
[310016409,1704288642654,-155.0,0.00022999,2]
[310016411,1704288642663,-158.96797182,0.00022999,2]
[310016413,1704288642673,-2129.994798,0.00022999,2]
[310016415,1704288642684,-2382.82266276,0.00023,2]
[310016419,1704288642715,-1703.6968,0.00023,2]
[310016422,1704288642726,-1902.43767021,0.00023,2]
[310016424,1704288642738,-1033.06198432,0.00023,2]
[310016435,1704288642839,-3029.07994113,0.00023,2]
[310016440,1704288642873,-516.29725284,0.00023,2]
[310016454,1704288643003,-325.42963823,0.00022999,2]
[310016457,1704288643016,-13013.89300434,0.00022999,2]
[310016470,1704288643131,-401.742,0.00022999,2]
[310016509,1704288643332,1659.80372291,0.0002198,2]
[310016515,1704288643356,1520.23790971,0.0002198,2]
[310016708,1704288645546,418.39942505,0.00022078,2]
[310016710,1704288645783,-164.98748773,0.00022667,4]
[310016712,1704288645793,-155.47670528,0.00022998,2]
[310016714,1704288645804,-91.60859478,0.00022998,2]
[310016719,1704288645839,-500.0,0.00022998,2]
[310016722,1704288645852,-101.55788997,0.00022998,2]
[310016724,1704288645861,-155.30037119,0.00022998,2]
[310016726,1704288645871,-41.39973884,0.00022998,2]
[310016728,1704288645883,-335.76499999,0.00022998,2]
[310016736,1704288645951,-949.65,0.00022998,2]
[310016745,1704288646031,-427.16,0.00022998,2]
[310016747,1704288646053,-1031.40782489,0.00022998,2]
[310016749,1704288646065,-3179.81827275,0.00022998,2]
[310016751,1704288646075,-155.28376448,0.00022998,2]
[310016753,1704288646086,-3034.17268135,0.00022998,2]
[310016755,1704288646096,-155.62545282,0.00022998,2]
[310016757,1704288646105,-155.0,0.00022998,2]
[310016759,1704288646115,-155.28829995,0.00022998,2]
[310016761,1704288646126,-2972.77197749,0.00022999,2]
[310016764,1704288646135,-155.0,0.00022999,2]
[310016766,1704288646145,-155.0,0.00022999,2]
[310016768,1704288646154,-259.19969068,0.00022999,2]
[310016769,1704288646164,-7591.67147434,0.00022999,2]
[310016770,1704288646177,-794.56260592,0.00022999,2]
[310016771,1704288646196,-609.48000008,0.00022999,2]
[310016772,1704288646209,-3033.67899338,0.00022999,2]
[310016774,1704288646222,-18208.77469843,0.00022999,2]
[310016776,1704288646235,-844.90255603,0.00022999,2]
[310016779,1704288646253,-8471.56196346,0.00022999,2]
[310016782,1704288646279,-731.53118823,0.00022999,2]
[310016785,1704288646292,-56585.75019294,0.00022999,2]
[310016957,1704288647980,-393.68225135,0.00022667,2]
[310016959,1704288647990,-155.0,0.00022997,2]
[310016961,1704288648000,-155.23410914,0.00022998,2]
[310016963,1704288648010,-155.0,0.00022998,2]
[310016965,1704288648019,-416.54397333,0.00022998,2]
[310016967,1704288648029,-362.82049166,0.00022998,2]
[310016969,1704288648038,-155.37660161,0.00022998,2]
[310016971,1704288648048,-234.78997094,0.00022998,2]
[310016973,1704288648057,-97.81923732,0.00022998,2]
[310017286,1704288663769,61.36266524,0.00021648,2]
[310017287,1704288663793,141.63733476,0.00021648,2]
[310017288,1704288667874,1858.36266524,0.00021853,2]
[310017289,1704288667897,346.25957137,0.00021853,2]
[310017290,1704288668934,1653.74042863,0.00022416,2]
[310017291,1704288668958,2000.0,0.00022416,2]
[310017292,1704288668980,2000.0,0.00022416,2]
[310017293,1704288669003,2000.0,0.00022416,2]
[310017294,1704288669025,2000.0,0.00022416,2]
[310017295,1704288669046,2000.0,0.00022416,2]
[310017296,1704288669068,6243.41717137,0.00022416,2]
[310017297,1704288675453,500.0,0.000226,8]
[310017298,1704288677556,1100.0,0.000227,8]
[310017299,1704288679994,2052.21,0.00022194,2]
[310017300,1704288686509,1700.0,0.000228,8]
[310017301,1704288688654,2300.0,0.000229,8]
[310017302,1704288690199,1800.0,0.00029,30]
[310017303,1704288715221,1305.47498388,0.00022178,2]
[310017304,1704288715598,1305.47498388,0.00022234,2]
[310017305,1704288715780,935.85117801,0.00022364,2]
[310017306,1704288716282,150.0,0.00022243,2]
[310017307,1704288720338,6109.4748,0.00022407,2]
[310017308,1704288721137,403.41499984,0.00022242,2]
[310017309,1704288723800,151.62,0.0002211,2]
[310017310,1704288723892,151.62,0.00022206,2]
[310017311,1704288724078,151.62,0.00022302,2]
[310017312,1704288724326,151.62,0.00022398,2]
[310017313,1704288724768,151.62,0.00022494,2]
[310017314,1704288759371,175.73,0.00022,2]
[310017315,1704288762504,200.0,0.00021684,2]
[310017316,1704288764539,155.0,0.00021999,2]
[310017317,1704288767964,161.26561784,0.00021683,2]
[310017318,1704288768134,301.34081716,0.00021683,2]
[310017319,1704288769322,650.41931128,0.00021683,2]
[310017320,1704288782534,155.0,0.00022429,2]
[310017321,1704288798594,827.66,0.00021674,2]
[310017322,1704288799277,150.0,0.00022,2]
[310017323,1704288800060,23900.0,0.00021674,2]
[310017324,1704288813899,151.17277773,0.00022,2]
[310017325,1704288816577,150.0,0.00022,2]
[310017326,1704288823705,250.0,0.00022,2]
[310017327,1704288824897,255.02005725,0.00022274,2]
[310017328,1704288827367,155.11357211,0.00022433,2]
[310017329,1704288832367,155.11357204,0.0002248,2]
[310017330,1704288837348,150.0,0.0002244,2]
[310017331,1704288837542,935.85117801,0.00022497,2]
[310017332,1704288837998,1305.47498388,0.00022219,2]
[310017333,1704288838322,1305.47498388,0.00022491,2]
[310017334,1704288849290,702.19,0.00019733,2]